Cogmind - Beta 15 @@@ ROGUE MODE // 2025.05.16 @ 09:26:03 Player: ZLD1 Result: Destroyed by H-61 Shepherd via exploding Nuclear Reactor Performance ------------- Evolutions (2) 1000 Regions Visited (5) 1000 Robots Destroyed (69) 345 Value Destroyed (1810) 1810 Prototype IDs (2) 40 Alien Tech Used (0) 0 Bonus (0) 0 TOTAL SCORE: 4195 Bonus ------- None Cogmind --------- Core Integrity 0/550 Matter 300/300 Energy 100/100 System Corruption 2% Temperature Cool (0) Movement Core (100) Ox1 Location -8/Materials Parts ------- > --- POWER (1) -------- (None) > --- PROPULSION (3) --- (None) > --- UTILITY (4) ------ Signal Interpreter > --- WEAPON (3) ------- Heavy Mace Heavy Mace > --- INVENTORY (5) ---- Light Deuterium Engine Light Nuclear Core Improved Heat Sink Improved Terrain Scanner Light Cannon Peak State ------------ > --- POWER ------------ Ion Engine > --- PROPULSION ------- Aluminum Leg Aluminum Leg > --- UTILITY ---------- Small Storage Unit Sensor Array Signal Interpreter > --- WEAPON ----------- Improved EM Shotgun Improved Light Cannon Improved Light Cannon > --- INVENTORY -------- Ion Engine Improved Heat Sink Sensor Array Light Cannon Light Cannon Improved Light Cannon Maul Maul [Rating: 14] Favorites ----------- Power Ion Engine Engine Ion Engine Propulsion Aluminum Leg Treads Light Treads Leg Aluminum Leg Utility Small Storage Unit Device Sensor Array Storage Small Storage Unit Processor Signal Interpreter Weapon Improved Light Cannon Energy Gun Medium Laser Ballistic Gun Improved Assault Rifle Ballistic Cannon Improved Light Cannon Impact Weapon Maul Build | -11 -10 -10 -9 -9 -8 ------- Run | Yrd Mat Min Mat Min Mat Slots Evolved 4 | . . . 2 . 2 Power . | . . . . . . Propulsion 1 | . . . . . 1 Utility 2 | . . . 1 . 1 Weapon 1 | . . . 1 . . Parts Attached 36 | 6 4 . 17 . 9 Power 5 | 1 . . 3 . 1 Engine 5 | 1 . . 3 . 1 Core . | . . . . . . Reactor . | . . . . . . Propulsion 12 | 2 . . 7 . 3 Treads 2 | . . . 2 . . Leg 10 | 2 . . 5 . 3 Wheel . | . . . . . . Hover . | . . . . . . Flight . | . . . . . . Utility 4 | 1 2 . 1 . . Device 2 | . 2 . . . . Storage 1 | 1 . . . . . Processor 1 | . . . 1 . . Hackware . | . . . . . . Protection . | . . . . . . Artifact . | . . . . . . Weapon 15 | 2 2 . 6 . 5 Energy Gun 3 | 2 . . 1 . . Energy Cannon . | . . . . . . Ballistic Gun 1 | . . . 1 . . Ballistic Cannon 7 | . 2 . 4 . 1 Launcher . | . . . . . . Special Weapon . | . . . . . . Impact Weapon 4 | . . . . . 4 Slashing Weapon . | . . . . . . Piercing Weapon . | . . . . . . Special Melee Weapon . | . . . . . . Unidentified Prototypes 2 | . . . 2 . . Parts Lost 19 | . . . 4 . 15 Power 3 | . . . 1 . 2 Propulsion 6 | . . . 1 . 5 Utility 3 | . . . . . 3 Weapon 7 | . . . 2 . 5 Highest Loss Streak 5 | . . . 2 . 5 To Critical Strikes . | . . . . . . Average Backups 6 | . 3 8 7 5 5 Power . | . . 1 . . 1 Propulsion . | . . 1 . . . Utility 1 | . . 2 1 2 1 Weapon 3 | . 2 4 4 3 2 Tool/Special . | . . . . . . Unused Backups 7 | . . . 2 . 5 Power 2 | . . . . . 2 Propulsion . | . . . . . . Utility 2 | . . . . . 2 Weapon 3 | . . . 2 . 1 Tool/Special . | . . . . . . Average Slot Usage (%) 82 | . 91 100 87 88 60 Engine 10 | . 14 14 11 11 5 Treads 2 | . . . 4 . . Leg 18 | . 28 28 17 22 12 Device 9 | . 5 14 11 11 7 Storage 11 | . 14 14 11 11 8 Processor 8 | . . . 11 11 9 Energy Gun 1 | . 12 . . . . Ballistic Cannon 18 | . 15 28 21 22 10 Impact Weapon 1 | . . . . . 7 Peak Build Rating 14 | 6 7 7 14 11 14 Average Rating 9 | 3 6 7 10 10 10 On Entrance 6 | . 6 7 7 10 11 Naked Turns . | . . . . . . Heaviest Build 23 | 12 15 15 23 19 20 Greatest Support 40 | 20 20 20 40 20 33 Greatest Overweight (x) 3 | . . . 1 . 3 Average Overweight (x) . | . . . . . . Largest Inventory Capacity 8 | 8 8 8 8 8 8 Average Capacity 7 | 6 8 8 8 8 7 Most Carried 8 | 5 8 8 8 6 7 Average Carried 6 | . 3 8 7 5 5 Final Capacity 8 | 8 8 8 8 8 5 Final Carried 8 | . 8 8 5 6 5 Class Distribution -------------------- 100% | Mutant Dominant Class ---------------- Mutant | -10/Materials Mutant | -10/Mines Mutant | -9/Materials Mutant | -9/Mines Mutant | -8/Materials Resources | -11 -10 -10 -9 -9 -8 ----------- Run | Yrd Mat Min Mat Min Mat Matter Collected 1521 | 260 . 77 810 . 374 Remotely . | . . . . . . Salvage Created 1674 | . 41 19 837 . 777 Parts 95 | . 3 4 57 . 31 Haulers Intercepted 3 | . 1 . 1 . 1 Recyclers Shooed 2 | . 1 . 1 . . Parts Field Recycled . | . . . . . . Retrieved Matter . | . . . . . . Parts Self-Destructed . | . . . . . . Prevented . | . . . . . . Kills | -11 -10 -10 -9 -9 -8 ------- Run | Yrd Mat Min Mat Min Mat Combat Hostiles Destroyed 55 | . . 3 28 . 24 Melee 4 | . . . . . 4 Cannons 46 | . . 3 28 . 15 Classes Destroyed 10 | . 2 1 5 . 2 Worker 2 | . . . . . 2 Builder 2 | . . . 1 . 1 Hauler 3 | . 1 . 1 . 1 Recycler 3 | . . . 1 . 2 Watcher 4 | . 1 . 2 . 1 Swarmer 23 | . . 3 10 . 10 Grunt 17 | . . . 9 . 8 Brawler 1 | . . . 1 . . Sentry 12 | . . . 8 . 4 Specialist 2 | . . . . . 2 Best Kill Streak 10 | . 1 3 8 . 10 Combat Bots Only 6 | . . 3 6 . 6 Max Kills in Single Turn 3 | . 1 1 1 . 3 Gunslinging . | . . . . . . Exploded . | . . . . . . Melee 1 | . . . . . 1 Uniques/NPCs Destroyed . | . . . . . . Combat | -11 -10 -10 -9 -9 -8 -------- Run | Yrd Mat Min Mat Min Mat Hostile Shots Fired 351 | . . 27 120 1 203 Missed 107 | . . 7 36 1 63 Hits 244 | . . 20 84 . 140 Projectile 244 | . . 20 84 . 140 AOE 1 | . . . . . 1 Critical Strikes 5 | . . . . . 5 Damage Taken 3032 | . . 165 1027 . 1840 Core 741 | . . 15 165 . 561 Absorbed by Shields . | . . . . . . Core Remaining (%) 84 | 100 . 94 . 58 . Volleys Fired 133 | . 10 8 71 . 44 Largest 3 | . 2 2 3 . 2 Hottest 100 | . 100 60 89 . 70 Shots Fired 253 | . 20 16 138 . 79 Gun 15 | . 14 . 1 . . Cannon 238 | . 6 16 137 . 79 Launcher . | . . . . . . Special . | . . . . . . Kinetic 239 | . 6 16 138 . 79 Thermal 14 | . 14 . . . . Explosive . | . . . . . . Electromagnetic . | . . . . . . Robot Hit Streak 16 | . 4 4 16 . 9 Robot Miss Streak 5 | . 2 5 4 . 4 Penetration Max . | . . . . . . Secondary Targets . | . . . . . . Shots Hit Robots 190 | . 13 8 85 . 84 Core Hits 66 | . 4 2 36 . 24 Critical Kills 1 | . . . . . 1 Critical Parts Destroyed 10 | . . . . . 10 Critical Strikes 17 | . 1 . 3 . 13 Burn 1 | . 1 . . . . Blast 4 | . . . 3 . 1 Smash 12 | . . . . . 12 Melee Attacks 50 | . . . . . 50 Impact 50 | . . . . . 50 Slashing . | . . . . . . Piercing . | . . . . . . Sneak Attacks 4 | . . . . . 4 Combat Hostiles . | . . . . . . Follow-up Attacks 8 | . . . . . 8 Damage Inflicted 4980 | . 173 135 1725 . 2947 Guns 124 | . 124 . . . . Cannons 2846 | . 49 135 1710 . 952 Explosions 365 | . . . . . 365 Melee 1616 | . . . . . 1616 Ramming 29 | . . . 15 . 14 Kinetic 2846 | . 49 135 1710 . 952 Thermal 124 | . 124 . . . . Explosive 365 | . . . . . 365 Electromagnetic . | . . . . . . Impact 1616 | . . . . . 1616 Slashing . | . . . . . . Piercing . | . . . . . . Highest Corruption 2 | . . . . . 2 Average Corruption 2 | . . . . . 2 Corruption Purged . | . . . . . . Corruption Blocked . | . . . . . . Effects 2 | . . . . . 2 Heat Flow Errors 1 | . . . . . 1 Energy Discharges 1 | . . . . . 1 Overload Shots . | . . . . . . Overflow Damage 617 | . . 10 28 . 579 Projectiles 95 | . . 10 28 . 57 Explosions 84 | . . . . . 84 Melee 438 | . . . . . 438 Knockbacks 37 | . 1 4 19 . 13 Impact 6 | . . . . . 6 Kinetic 29 | . 1 4 19 . 5 Secondary 2 | . . . . . 2 Self-Inflicted Damage . | . . . . . . Shots . | . . . . . . Rammed . | . . . . . . Targets Rammed 5 | . . . 3 . 2 Kicked 5 | . . . 3 . 2 Crushed . | . . . . . . Highest Temperature 207 | . 156 . 60 . 207 Average Temperature 31 | . 71 . 12 . 32 Received Heat Transfer 798 | . . . 303 . 495 Siege Activations . | . . . . . . Martial Activations . | . . . . . . Shielding Activations . | . . . . . . Robots Disrupted . | . . . . . . Combat Hostiles . | . . . . . . Robots Corrupted 7 | . . . . . 7 Combat Hostiles 5 | . . . . . 5 Parts Fried 7 | . . . . . 7 Impact Corruptions 20 | . . . . . 20 Robots Melted . | . . . . . . Combat Hostiles . | . . . . . . Parts Melted 1 | . 1 . . . . Heat Transferred 444 | . 444 . . . . Parts Sabotaged . | . . . . . . Parts Stolen . | . . . . . . Parts Stripped . | . . . . . . Power Chain Reactions . | . . . . . . Alert | -11 -10 -10 -9 -9 -8 ------- Run | Yrd Mat Min Mat Min Mat Maximum Alert Level 1 | . . . 1 . 1 Low Security (%) 74 | 100 100 100 68 100 58 Level 1 25 | . . . 31 . 41 Level 2 . | . . . . . . Level 3 . | . . . . . . Level 4 . | . . . . . . Level 5 . | . . . . . . High Security . | . . . . . . Max Security . | . . . . . . Peak Influence 341 | . 15 105 341 117 288 Initial 117 | . . . . 117 26 Average 117 | . 2 43 153 93 143 Influence Increases 1701 | . 44 115 846 . 696 Destroy 0b10 Robot/C 1100 | . . 60 560 . 480 Destroy 0b10 Robot/NC 70 | . 10 . 25 . 35 Destroy Leader 274 | . 4 10 156 . 104 Successful Hack 5 | . . . 5 . . Disable Machine 105 | . . 45 30 . 30 Destroy Structure 27 | . . . 10 . 17 Partial Spotted 30 | . 15 . . . 15 Lose Combat Pursuer 90 | . 15 . 60 . 15 Influence Decreases 1421 | . 44 115 544 235 483 Entered New Map 226 | . . . . 185 41 Time Decay 1005 | . 44 115 504 50 292 Lost Part 190 | . . . 40 . 150 Squads Dispatched 7 | . 1 . 2 . 4 Investigation . | . . . . . . Extermination . | . . . . . . Reinforcement 7 | . 1 . 2 . 4 Assault . | . . . . . . Garrison . | . . . . . . Intercept . | . . . . . . Searches Triggered . | . . . . . . Construction Impeded 1 | . . . . . 1 Haulers Reinforced . | . . . . . . Active Scanning Responses . | . . . . . . Cargo Convoy Interrupts . | . . . . . . Stealth | -11 -10 -10 -9 -9 -8 --------- Run | Yrd Mat Min Mat Min Mat Distress Signals 9 | . . . 5 . 4 Communications Jammed . | . . . . . . Distress Signals . | . . . . . . Times Spotted 93 | . 3 3 45 5 37 Peak Tracking Total 13 | . 3 3 7 13 9 Tactical Retreats 8 | . 1 . 4 2 1 Traps | -11 -10 -10 -9 -9 -8 ------- Run | Yrd Mat Min Mat Min Mat Traps Triggered 3 | . . . 2 . 1 Indirectly . | . . . . . . Trap Hack Attempts . | . . . . . . Triggered . | . . . . . . Disarmed . | . . . . . . Reprogrammed . | . . . . . . Reused . | . . . . . . Traps Extracted . | . . . . . . Installed . | . . . . . . Triggered . | . . . . . . Machines | -11 -10 -10 -9 -9 -8 ---------- Run | Yrd Mat Min Mat Min Mat Machines Disabled 7 | . . 3 2 . 2 Max in Single Turn 2 | . . 2 1 . 1 Machines Repaired . | . . . . . . Machines Dismantled . | . . . . . . Machines Sabotaged . | . . . . . . Overloaded Fab Kills . | . . . . . . Hacking | -11 -10 -10 -9 -9 -8 --------- Run | Yrd Mat Min Mat Min Mat Machines Accessed 2 | . . . 2 . . Terminals 2 | . . . 2 . . Fabricators . | . . . . . . Repair Stations . | . . . . . . Recycling Units . | . . . . . . Scanalyzers . | . . . . . . Garrison Access . | . . . . . . Total Hacks 3 | . . . 3 . . Successful 2 | . . . 2 . . Failed 1 | . . . 1 . . Catastrophic . | . . . . . . Database Lockouts . | . . . . . . Manual . | . . . . . . Terminals 3 | . . . 3 . . Fabricators . | . . . . . . Repair Stations . | . . . . . . Recycling Units . | . . . . . . Scanalyzers . | . . . . . . Garrison Access . | . . . . . . Terminal Hacks 2 | . . . 2 . . Record 1 | . . . 1 . . Zone Layout 1 | . . . 1 . . Fabricator Hacks . | . . . . . . Repair Station Hacks . | . . . . . . Recycling Unit Hacks . | . . . . . . Scanalyzer . | . . . . . . Garrison Access Hacks . | . . . . . . Unauthorized Hacks . | . . . . . . Terminals . | . . . . . . Fabricators . | . . . . . . Repair Stations . | . . . . . . Recycling Units . | . . . . . . Scanalyzers . | . . . . . . Garrison Access . | . . . . . . Data Cores Recovered . | . . . . . . Used . | . . . . . . Hacking Detections 1 | . . . 1 . . Full Trace Events . | . . . . . . Feedback Events . | . . . . . . Feedback Blocked . | . . . . . . Robot Schematics Acquired . | . . . . . . Robots Built . | . . . . . . Authchips . | . . . . . . Time . | . . . . . . Total Robot Build Rating . | . . . . . . Part Schematics Acquired . | . . . . . . Parts Built . | . . . . . . Authchips . | . . . . . . Time . | . . . . . . Total Part Build Rating . | . . . . . . Parts Repaired . | . . . . . . Time . | . . . . . . Parts Recycled . | . . . . . . Recycled Matter . | . . . . . . Retrieved Matter . | . . . . . . Retrieved Components . | . . . . . . Parts Scanalyzed . | . . . . . . Part Schematics Acquired . | . . . . . . Parts Damaged . | . . . . . . Bothacking | -11 -10 -10 -9 -9 -8 ------------ Run | Yrd Mat Min Mat Min Mat Used RIF Installer . | . . . . . . Robots Hacked . | . . . . . . Non-combat . | . . . . . . Combat . | . . . . . . Robot Hacks Applied . | . . . . . . Relay Couplers Released . | . . . . . . Fabnet Peak Effective % . | . . . . . . Robots Rewired . | . . . . . . Allies Hacked . | . . . . . . Hacks Repelled . | . . . . . . Allies | -11 -10 -10 -9 -9 -8 -------- Run | Yrd Mat Min Mat Min Mat Total Allies . | . . . . . . Largest Group . | . . . . . . Highest-Rated Group . | . . . . . . Highest-Rated Ally . | . . . . . . Total Orders . | . . . . . . Ally Attacks . | . . . . . . Total Damage . | . . . . . . Kills . | . . . . . . Allies Corrupted . | . . . . . . Allies Melted . | . . . . . . Intel | -11 -10 -10 -9 -9 -8 ------- Run | Yrd Mat Min Mat Min Mat Active Infowar (turns) 2503 | . 150 271 1403 112 567 Sensors 2503 | . 150 271 1403 112 567 Robot Analysis Total . | . . . . . . Derelict Logs Recovered 1 | . . 1 . . . Drone Launches . | . . . . . . Drone Recoveries . | . . . . . . Exploration | -11 -10 -10 -9 -9 -8 ------------- Run | Yrd Mat Min Mat Min Mat Turns Passed 2914 | 45 354 271 1403 112 729 Spaces Moved 1638 | 38 211 165 798 93 333 Core 45 | 17 . . . . 28 Treads 149 | . . . 149 . . Legs 1444 | 21 211 165 649 93 305 Wheels . | . . . . . . Hover . | . . . . . . Flight . | . . . . . . Fastest Speed 50 | 50 120 120 120 120 100 Average Speed 125 | 88 120 120 128 120 127 Slowest Speed 200 | 120 120 120 190 120 200 Overloaded Moves . | . . . . . . Propulsion Burnouts . | . . . . . . Robots Hopped . | . . . . . . Potential Cave-ins . | . . . . . . Cave-ins Triggered . | . . . . . . Exploration Rate (%) 42 | 5 41 54 83 29 41 Regions Visited 5 Branch Regions 2 Pre-discovered Areas . | . . . . . . Known Exits Taken 2 | . . . 1 1 . Unknown Exits Taken 3 | 1 1 1 . . . Scrap Searched 2 | . . 1 . 1 . Spaces Dug . | . . . . . . Terrain Destroyed 24 | . . . 4 . 20 Melee . | . . . . . . Projectile 17 | . . . 4 . 13 AOE 7 | . . . . . 7 Terrain Rammed . | . . . . . . Walls Destroyed . | . . . . . . Machines Disabled . | . . . . . . Actions | -11 -10 -10 -9 -9 -8 --------- Run | Yrd Mat Min Mat Min Mat Total 2173 | 49 290 222 1040 93 479 Wait 265 | . 57 50 115 . 43 Move 1633 | 37 210 164 797 92 333 Hop . | . . . . . . Pick Up 36 | 6 9 . 11 1 9 Fast Attach 8 | . . . 8 . . Attach 24 | 6 1 . 7 . 10 Detach 1 | . . . 1 . . Swap 11 | . 3 . 8 . . Drop 19 | . . . 19 . . Fire 133 | . 10 8 71 . 44 Melee 38 | . . . . . 38 Ram . | . . . . . . Kick 5 | . . . 3 . 2 Crush . | . . . . . . Escape Stasis . | . . . . . . Rewire . | . . . . . . Trap . | . . . . . . Miscellaneous . | . . . . . . Route ------- -11/Scrapyard -10/Materials (discovered 3 exits: *Mat / [*Min x2]) -10/Mines (discovered 2 exits: *Mat / [*Exi]) -9/Materials (discovered 4 exits: *Mat x3 / *Min) -9/Mines -8/Materials (discovered 1 exit: *Fac) History --------- Turn | Location | Event 7 | -11/Scrapyard | Discovered new exit (range 15) 46 | -11/Scrapyard | Entered Materials 281 | -10/Materials | Discovered new exit (range 16) 309 | -10/Materials | Build established: Mutant 320 | -10/Materials | Discovered new exit (range 13) 391 | -10/Materials | Discovered new exit (range 4) 400 | -10/Materials | Entered Mines 509 | -10/Mines | Deemed a non-threat by the Exiles lab entrance 510 | -10/Mines | Discovered new exit (range 5) 663 | -10/Mines | Learned Materials garrison access intel 668 | -10/Mines | Discovered new exit (range 4) 671 | -10/Mines | Entered Materials 671 | -9/Materials | Evolved 2 slots: Utility x1, Weapon x1 1433 | -9/Materials | Discovered new exit (range 9) 1443 | -9/Materials | Identified exit to Materials 1532 | -9/Materials | Discovered new exit (range 6) 1543 | -9/Materials | Identified exit to Mines 1636 | -9/Materials | Discovered exit to Materials (range 10) 1864 | -9/Materials | Discovered exit to Materials (range 3) 2074 | -9/Materials | Entered Mines 2141 | -9/Mines | Assembled infested the area 2146 | -9/Mines | Assisted by a Guerilla fighting off Assembled 2177 | -9/Mines | Discovered exit to Materials (range 8) 2186 | -9/Mines | Entered Materials 2186 | -8/Materials | Evolved 2 slots: Propulsion x1, Utility x1 2187 | -8/Materials | Loaded intel: 1 garrison access location 2506 | -8/Materials | Discovered new exit (range 15) 2523 | -8/Materials | Identified exit to Factory 2635 | -8/Materials | Lost 4 parts (1p1n2w) 2705 | -8/Materials | Lost 3 parts (1p1n1u) 2851 | -8/Materials | Core integrity fell below 50% 2915 | -8/Materials | Destroyed by H-61 Shepherd via exploding Nuclear Reactor Last Messages --------------- crushing effect. 02903_ Maul follow-up attack on X-57 Shotgunner. 02903_ X-57 Shotgunner suffers critical hit (Smash). 02903_ Destroyed VSS Leg. 02903_ X-57 Shotgunner system corrupted by crushing effect. 02903_ X-57 Shotgunner knocked back. 02906_ Carbon-fiber Leg destroyed. 02909_ H-61 Shepherd calls for reinforcements. 02909_ ALERT: Hostile activity reported, dispatching reinforcements to area. 02909_ Maul destroyed. 02909_ Knocked back. 02910_ R-06 Scavenger collects Corrupted VSS Leg. 02913_ Knocked back. 02914_ Sneak attack on R-06 Scavenger. 02914_ R-06 Scavenger destroyed. 02915_ Nuclear Reactor explodes. Map ----- +----------------------------------------------------+ | ?????????????????????????????????????????????????? | | ?????????????????????????????????????????????????? | | ?????????????????????????????????????????????????? | | ?????????????????????????????????????????????????? | | ?????????????????????????????????????????????????? | | ?????????????????????????????????????????????????? | | ?????????????????????????????????????????????????? | | ?????????????????????????????????????????????????? | | ?????????????????????????????????????????????????? | | ?????????????????????????????????????????????????? | | ?????????????????????????????????????????????????? | | ?????????????????????????????????????????????????? | | ?????????????????????????????????????????????????? | | ?????????????????????????????????????????????????? | | ?????????????????????????????????????????????????? | | ?????????????????????????????????????????????????? | | ?????????????????????????????????????????????????? | | ????????????????????????#######??????????????????? | | ????????????????????????# ####### ????????? | | ??????????????????????### ????????? | | ??????????????????????? ???????? | | ????????????????????????# H ???????????? | | ????????????????????????# %%! #??????????????????? | | ??????????????????????####=%[###?????????????????? | | ??????????????????????# %*%= #?????????????????? | | ??????????????????????# @ = #?????????????????? | | ??????????????????????# #?????????????????? | | ??????????????????????# #?????????????????? | | ??????????????????????# #?????????????????? | | ??????????????????????# """ #?????????????????? | | ??????????????????????# """ #?????????????????? | | ??????????????????????# """w #?????????????????? | | ??????????????????????# #?????????????????? | | ??????????????????????###+######?????????????????? | | ????????????????????????# #??????????###+###????? | | ????????????????????????# #??????????# ##### | | ????????????????????????# #?########## | | ????????????????????????# #?# ? T | | ????????????????????????# #?# #??# ? | | ????????????????????????# #?# #??# #?????? | | ????????????????????????# #?# #??### ###?????? | | ????????????????????????# #?# #????# #???????? | | ????????????????????????# #?# #????# #???????? | | ????????????????????#???# #?# #????# #???????? | | ???????#########+######## #?# #????# #???????? | | ???????? !% ### ######+#???????? | | ??######## !! # = #???????? | | ??# """ =# %% % # #???????? | | ??# "Y"^ # [ *% = [ + """ #???????? | | ??# ^ [# % % [ # """ #???????? | +----------------------------------------------------+ Best States ------------- Heat Dissipation 31 Energy Generation 10 Energy Capacity 250 Matter Stores 300 Matter Capacity 300 Sight Range 16 Robot Scan Range 14 Terrain Scan Density 10 Evasion (%) 55 Recoil Reduction 2 Item Schematics ----------------- None Robot Schematics ------------------ None Fabricated ------------ Nothing Repaired ---------- Nothing Alien Tech Used ----------------- None Achievements -------------- None Challenges ------------ None Game ------ Seed VampiricSigixMask Manual? 0 Play Time 00:22:31 Cumulative 60.7 hours Start 2025.05.15 @ 21:26:45 End 2025.05.16 @ 09:26:03 Sessions 2 Manual Loads 0 Difficulty Rogue Special Mode None Game No. 141 Rogue 141 Adventurer 0 Explorer 0 Win Type - Total 1 Types 1/0/0/0/0/0/0/0/0/0 Lore% 24 Gallery% 36 Achievement% 33 Wizard Run 0 Options --------- Layout 1 ASCII 0 Keyboard 0 Movement Mouse Keybinds 0 Fullscreen 0 Font 28/SmallcapsGlow Map View 50x35 Zoom Use 0% Tactical HUD 1 Map Filters NONE Filters NONE Steam 1 RUN: 28db2fa2-1afb-4286-985a-fbcd6e09b6a6